bitfinex-derivatives/quotes_BTCF0:USTF0_20251120
["timestamp","ask_amount","ask_price","bid_price","bid_amount"]
[1763637977351,0.00219803,91623.0,91622.0,1.5437]
[1763637977651,0.00230976,91623.0,91622.0,1.5437]
[1763637978260,0.04694976,91623.0,91622.0,1.5437]
[1763637978448,0.02425976,91623.0,91622.0,1.5437]
[1763637978643,0.04694976,91623.0,91622.0,1.5437]
[1763637979047,0.04694976,91623.0,91622.0,0.0437]
[1763637979449,0.04694976,91623.0,91622.0,1.5437]
[1763637983151,0.1539013,91618.0,91617.0,0.0437]
[1763637983350,0.15609933,91618.0,91617.0,0.0437]
[1763637983551,0.04683803,91618.0,91617.0,0.0437]
[1763637983753,0.04683803,91618.0,91617.0,1.5437]
[1763637984049,0.02414803,91618.0,91617.0,1.5437]
[1763637984257,0.04683803,91618.0,91617.0,0.1529625]
[1763637984851,0.04683803,91618.0,91617.0,0.0437]
[1763637988748,0.15609933,91618.0,91617.0,0.0437]
[1763637991261,0.1539084,91612.0,91611.0,0.1529685]
[1763637991464,0.15610643,91612.0,91611.0,0.1529685]
[1763637991654,0.15610643,91612.0,91611.0,0.0437]
[1763637991853,0.1539132,91608.0,91606.0,0.00027291]
[1763637992163,0.04464,91607.0,91606.0,0.04402291]
[1763637992360,0.04683803,91607.0,91606.0,0.04402291]
[1763637992562,0.04683803,91607.0,91606.0,1.54402291]
[1763637993165,0.04683803,91607.0,91606.0,1.52234291]
[1763637994663,0.00219803,91607.0,91606.0,1.52234291]
[1763637995558,0.02398803,91607.0,91606.0,1.52234291]
[1763637995753,0.00219803,91607.0,91606.0,1.52234291]
[1763637995958,0.02398803,91607.0,91606.0,1.52234291]
[1763637996672,0.04533803,91607.0,91606.0,1.52234291]
[1763637997256,0.04533803,91607.0,91606.0,0.04402291]
[1763637998965,0.02398803,91607.0,91606.0,0.04474291]
[1763637999270,0.04533803,91607.0,91606.0,0.04474291]
[1763637999473,0.02398803,91607.0,91606.0,1.54474291]
[1763637999864,0.04533803,91607.0,91606.0,1.54474291]
[1763638001570,0.00219803,91607.0,91606.0,1.54474291]
[1763638001771,0.3608,91613.0,91612.0,0.04447]
[1763638001976,0.3608,91613.0,91612.0,0.1537384]
[1763638002677,0.14842,91619.0,91618.0,0.1537313]
[1763638002879,0.15061803,91619.0,91618.0,0.1537313]
[1763638003775,0.04533803,91619.0,91618.0,0.1537313]
[1763638003967,0.00219803,91619.0,91618.0,0.1537313]
[1763638004274,0.02190173,91623.0,91622.0,0.1537265]
[1763638004467,0.00011173,91623.0,91622.0,0.1537265]
[1763638006174,0.1539562,91631.0,91630.0,0.153567]
[1763638006374,0.04690803,91631.0,91630.0,0.153567]
[1763638006679,0.02398803,91631.0,91630.0,0.153567]
[1763638006877,0.00219803,91631.0,91630.0,0.153567]
[1763638007274,0.00225365,91631.0,91630.0,0.153567]
[1763638009580,5.562e-05,91631.0,91630.0,0.153567]
[1763638010085,0.00016371,91632.0,91631.0,0.04382]
[1763638011080,0.02527174,91632.0,91631.0,0.04382]
[1763638011268,0.04819174,91632.0,91631.0,0.04382]
[1763638011675,0.04819174,91632.0,91631.0,0.1530658]
[1763638011872,0.04819174,91632.0,91631.0,0.04382]
[1763638012282,0.04819174,91632.0,91631.0,0.1530658]
[1763638012579,0.04919174,91632.0,91631.0,0.04382]
[1763638012975,0.04819174,91632.0,91631.0,0.04382]
[1763638013368,0.04819174,91632.0,91625.0,0.40462]
[1763638013369,0.1550817,91626.0,91625.0,0.40462]
[1763638013575,0.15727973,91626.0,91625.0,0.04382]
[1763638015980,0.15727973,91626.0,91625.0,0.1530729]
[1763638017383,0.00016371,91632.0,91631.0,0.1530658]
[1763638020388,0.02307371,91632.0,91631.0,0.1530658]
[1763638020580,0.00016371,91632.0,91631.0,0.1530658]
[1763638022580,0.15711634,91632.0,91631.0,0.04382]
[1763638022973,0.15711634,91632.0,91631.0,0.1530658]
[1763638025188,0.04787174,91632.0,91631.0,0.1530658]
[1763638025783,0.02321,91616.0,91615.0,0.1548848]
[1763638025983,0.04800803,91616.0,91615.0,0.04562]
[1763638027987,0.04581,91607.0,91606.0,0.02305291]
[1763638028189,0.04581,91607.0,91590.0,0.01307]
[1763638028190,0.04581,91591.0,91590.0,0.05869]
[1763638028395,0.04800803,91591.0,91590.0,1.55869]
[1763638029286,0.04800803,91591.0,91590.0,0.04562]
[1763638030179,0.04800803,91591.0,91590.0,0.02278]
[1763638030376,0.04800803,91591.0,91590.0,0.04562]
[1763638031683,0.04900803,91591.0,91590.0,0.04562]
[1763638031885,0.1551094,91586.0,91585.0,0.00010753]
[1763638032089,0.15730743,91586.0,91585.0,0.04572753]
[1763638032278,0.15730743,91586.0,91585.0,0.00010753]
[1763638032478,0.15730743,91586.0,91585.0,0.02288753]
[1763638032784,0.15730743,91586.0,91585.0,0.04572753]
[1763638033890,0.04900803,91586.0,91585.0,0.04572753]
[1763638035080,0.04800803,91586.0,91585.0,0.04572753]
[1763638035991,0.3608,91598.0,91585.0,0.04572753]
[1763638035992,0.00016371,91600.0,91599.0,0.04562]
[1763638036682,0.3608,91615.0,91606.0,0.04562]
[1763638036883,0.3608,91615.0,91614.0,0.154886]
[1763638037088,0.3608,91615.0,91589.0,0.07860973]
[1763638037089,0.1551047,91590.0,91589.0,0.07860973]
[1763638037281,0.62350273,91590.0,91589.0,0.04562]
[1763638037482,0.40880803,91590.0,91589.0,0.04562]
[1763638037682,0.51424803,91590.0,91589.0,0.04562]
[1763638037995,0.49164803,91590.0,91589.0,0.04562]
[1763638038297,0.51424803,91590.0,91589.0,0.04562]
[1763638038888,0.51524803,91590.0,91589.0,0.04562]
[1763638039783,0.51624803,91590.0,91589.0,1.54562]
[1763638040188,0.51624803,91590.0,91589.0,0.04562]
[1763638040381,0.51524803,91590.0,91589.0,0.04562]
[1763638040577,0.51624803,91590.0,91589.0,0.04562]
[1763638040990,0.51524803,91590.0,91589.0,0.04562]
[1763638041296,0.51624803,91590.0,91589.0,0.04562]
[1763638042082,0.51524803,91590.0,91589.0,0.04562]
[1763638042890,0.51624803,91590.0,91589.0,0.04562]
[1763638043882,0.51624803,91590.0,91585.0,0.02288753]
[1763638043883,0.1325094,91586.0,91585.0,0.02288753]
[1763638044090,0.15730743,91586.0,91585.0,0.04572753]
[1763638045195,0.15730743,91586.0,91585.0,0.00010753]
[1763638045501,0.15830743,91586.0,91585.0,0.02288753]
[1763638045694,0.15830743,91586.0,91585.0,0.04572753]
[1763638046892,0.13184803,91586.0,91585.0,0.15502813]
[1763638047686,0.02640803,91586.0,91585.0,0.15502813]
[1763638047882,0.10863803,91586.0,91585.0,0.15502813]
[1763638048085,0.00319803,91586.0,91585.0,0.15502813]
[1763638048492,0.00219803,91586.0,91585.0,0.15502813]
[1763638049791,0.00219803,91586.0,91585.0,1.65502813]
[1763638050501,0.00219803,91586.0,91585.0,1.63502813]
[1763638050892,0.02540803,91586.0,91585.0,0.13502813]
[1763638051492,0.0255147,91586.0,91585.0,0.13502813]
[1763638053001,0.0023047,91586.0,91585.0,0.13502813]
[1763638053204,0.0239947,91586.0,91585.0,0.13502813]
[1763638055294,0.0451447,91586.0,91585.0,0.13502813]
[1763638058098,0.0451447,91586.0,91585.0,0.02572753]
[1763638058297,0.1544441,91586.0,91585.0,0.02572753]
[1763638059899,0.1554441,91586.0,91585.0,0.02572753]
[1763638060499,0.0249947,91586.0,91585.0,0.02572753]
[1763638060706,0.0461447,91586.0,91585.0,0.02572753]
[1763638061296,0.0451447,91586.0,91585.0,0.02572753]
[1763638062003,0.0023047,91586.0,91585.0,0.02572753]
[1763638064302,0.00010667,91586.0,91585.0,0.02572753]
[1763638065193,0.0451447,91586.0,91585.0,0.02572753]
[1763638065401,0.04284,91581.0,91578.0,0.07860973]
[1763638065598,0.04503803,91581.0,91576.0,0.3608]
[1763638065793,0.1521502,91577.0,91570.0,0.07860973]
[1763638066005,0.04284,91567.0,91566.0,0.09996276]
[1763638066202,0.04503803,91567.0,91566.0,0.12129276]
[1763638066398,0.04503803,91567.0,91566.0,1.62129276]
[1763638066598,0.05808803,91567.0,91566.0,1.54268303]
[1763638066795,0.04503803,91567.0,91566.0,1.54268303]
[1763638067006,0.04503803,91567.0,91566.0,1.65200633]
[1763638067399,0.00219803,91567.0,91566.0,1.65200633]
[1763638067598,0.10556381,91576.0,91566.0,1.65200633]
[1763638067599,0.00016381,91576.0,91575.0,0.04241]
[1763638067799,0.02405184,91576.0,91575.0,0.04241]
[1763638068208,0.04520184,91576.0,91575.0,0.04241]
[1763638068902,0.02405184,91576.0,91575.0,0.04241]
[1763638069305,0.04520184,91576.0,91575.0,0.04241]
[1763638070002,0.1521597,91569.0,91568.0,0.40321]
[1763638070203,0.15435773,91569.0,91568.0,0.40321]
[1763638070601,0.15435773,91569.0,91568.0,0.3258]
[1763638070808,0.04284,91567.0,91566.0,3.03e-06]
[1763638071002,0.04284,91554.0,91553.0,0.05513]
[1763638071203,0.40583803,91554.0,91553.0,0.05513]
[1763638071408,0.36299803,91554.0,91553.0,0.1644688]
[1763638071609,0.36299803,91554.0,91553.0,0.05513]
[1763638072903,0.40583803,91554.0,91553.0,0.05513]
[1763638074409,0.36299803,91554.0,91553.0,0.05513]
[1763638075803,0.47233563,91554.0,91553.0,0.05513]
[1763638076008,0.51517563,91554.0,91553.0,0.05513]
[1763638078207,0.51517563,91554.0,91553.0,0.02108]
[1763638079112,0.51517563,91554.0,91553.0,0.04241]
[1763638080518,0.51517563,91554.0,91553.0,0.05513]
[1763638080907,0.36299803,91554.0,91553.0,0.05513]
[1763638082114,0.40774803,91554.0,91553.0,0.05513]
[1763638082521,0.36299803,91554.0,91553.0,0.05513]
[1763638084415,0.38593803,91554.0,91553.0,0.05513]
[1763638084616,0.40899803,91554.0,91553.0,0.05513]
[1763638086118,0.38593803,91554.0,91553.0,0.05513]
[1763638087324,0.40899803,91554.0,91553.0,0.05513]
[1763638088821,0.40899803,91554.0,91553.0,0.04241]
[1763638089222,0.04987,91546.0,91545.0,8.243e-05]
[1763638089425,0.046,91531.0,91530.0,0.04573]
[1763638089617,0.40899803,91531.0,91530.0,0.04573]
[1763638091230,0.51836313,91531.0,91530.0,0.04573]
[1763638092118,0.36299803,91531.0,91530.0,0.04573]
[1763638093330,0.00219803,91531.0,91530.0,0.04573]
[1763638093830,0.046,91545.0,91544.0,0.1550796]
[1763638094132,0.00219803,91545.0,91544.0,0.1689296]
[1763638095829,0.00010636,91546.0,91545.0,0.04573]
[1763638097724,0.3608,91561.0,91554.0,0.1550676]
[1763638098728,0.00244544,91555.0,91554.0,0.1550676]
[1763638100025,0.04844544,91555.0,91554.0,0.04573]
[1763638100228,0.15778184,91555.0,91554.0,0.04573]
[1763638100527,0.04844544,91555.0,91554.0,0.04573]
[1763638100930,0.02538544,91555.0,91554.0,0.04573]
[1763638101114,0.00244544,91555.0,91554.0,0.04573]
[1763638101518,0.00024741,91555.0,91554.0,0.04573]
[1763638104334,0.00244544,91555.0,91554.0,0.04573]
[1763638104829,0.00024741,91555.0,91554.0,0.04573]
[1763638106137,0.00244544,91555.0,91554.0,0.04573]
[1763638106431,0.04844544,91555.0,91554.0,0.04573]
[1763638112934,0.51858194,91555.0,91554.0,0.04573]
[1763638113929,0.155746,91547.0,91546.0,0.12409359]
[1763638114132,0.40939803,91547.0,91546.0,0.04546]
[1763638114539,0.51874403,91547.0,91546.0,0.04546]
[1763638116530,0.40939803,91547.0,91546.0,0.04546]
[1763638116726,0.36299803,91547.0,91546.0,0.23344079]
[1763638116937,0.36299803,91547.0,91546.0,0.1548072]
[1763638117136,0.36299803,91547.0,91546.0,0.23337347]
[1763638117843,0.36299803,91547.0,91546.0,0.1548072]
[1763638121641,0.3608,91547.0,91546.0,0.1548072]
[1763638123546,0.36299803,91547.0,91546.0,0.1548072]
[1763638126135,0.36299803,91547.0,91546.0,0.2602872]
[1763638127149,0.3608,91547.0,91546.0,0.2602872]
[1763638127441,0.00024741,91555.0,91554.0,0.1681376]
[1763638127641,0.02564544,91555.0,91554.0,0.1681376]
[1763638128038,0.04884544,91555.0,91554.0,0.1681376]
[1763638130649,0.00244544,91555.0,91554.0,0.1681376]
[1763638131143,0.00024741,91555.0,91554.0,0.1681376]
[1763638131347,0.00244544,91555.0,91554.0,0.1681376]
[1763638132045,0.02564544,91555.0,91554.0,0.1681376]
[1763638132248,0.00244544,91555.0,91554.0,0.1681376]
[1763638132749,0.3608,91556.0,91555.0,0.04546]
[1763638132945,0.0488614,91595.0,91573.0,0.154775]
[1763638132946,0.4072,91574.0,91573.0,0.154775]
[1763638133149,0.40939803,91574.0,91573.0,0.04546]
[1763638135042,0.51871183,91574.0,91573.0,0.04546]
[1763638135244,0.40939803,91574.0,91573.0,0.04546]
[1763638135443,0.51871183,91574.0,91573.0,0.04546]
[1763638136141,0.41039803,91574.0,91573.0,0.04546]
[1763638136745,0.41139803,91574.0,91573.0,0.04546]
[1763638137157,0.0464,91572.0,91571.0,0.1318468]
[1763638137451,0.04859803,91572.0,91571.0,0.1547768]
[1763638138038,0.15791423,91572.0,91571.0,0.04546]
[1763638138446,0.15891423,91572.0,91571.0,0.04546]
[1763638138843,0.15891423,91572.0,91571.0,0.02253]
[1763638139043,0.15991423,91572.0,91571.0,0.02253]
[1763638139443,0.15991423,91572.0,91571.0,0.04546]
[1763638140950,0.05059803,91572.0,91571.0,0.1547773]
[1763638141149,0.15991423,91572.0,91571.0,0.1547773]
[1763638143154,0.15991423,91572.0,91571.0,0.04546]
[1763638143453,0.15991423,91572.0,91571.0,0.1547773]
[1763638143954,0.002,91572.0,91571.0,0.1547773]
[1763638144260,0.3608,91582.0,91581.0,0.1529754]
[1763638145644,0.3618,91582.0,91581.0,0.1529754]
[1763638146745,0.36399803,91582.0,91581.0,0.1529754]
[1763638146950,0.36499803,91582.0,91581.0,0.1529754]
[1763638147151,0.38646803,91582.0,91581.0,0.1529754]
[1763638147950,0.40875803,91582.0,91581.0,0.04367]
[1763638152255,0.40875803,91582.0,91581.0,0.0546005]
[1763638154165,0.40875803,91582.0,91581.0,0.04367]
[1763638154357,0.04376,91575.0,91574.0,0.12219117]
[1763638154563,0.04376,91575.0,91574.0,0.04367]
[1763638154564,0.04595803,91575.0,91574.0,0.04367]
[1763638155755,0.04695803,91575.0,91574.0,0.04367]
[1763638155954,0.02466803,91575.0,91574.0,0.04367]
[1763638156166,0.00319803,91575.0,91574.0,0.04367]
[1763638158170,0.00319803,91575.0,91574.0,0.12219117]
[1763638158872,0.04695803,91575.0,91574.0,0.04367]
[1763638161266,0.04695803,91575.0,91574.0,0.12219117]
[1763638162861,0.00319803,91575.0,91574.0,0.12219117]
[1763638163063,0.3608,91581.0,91580.0,0.0546006]
[1763638163561,0.3608,91581.0,91580.0,0.13315091]
[1763638163766,0.3608,91581.0,91580.0,0.0546006]
[1763638164174,0.00016381,91583.0,91582.0,0.0546004]
[1763638164472,0.00016381,91583.0,91582.0,0.4154004]
[1763638164664,0.00016381,91583.0,91582.0,0.49394596]
[1763638165177,0.00016381,91583.0,91582.0,0.4154004]
[1763638165773,0.00116381,91583.0,91582.0,0.4154004]
[1763638166176,0.00116381,91583.0,91582.0,0.5208004]
[1763638166474,0.00216381,91583.0,91582.0,0.5208004]
[1763638170176,0.40814,91598.0,91597.0,0.0569686]
[1763638170370,0.04953803,91598.0,91597.0,0.0569686]
[1763638170574,0.00219803,91598.0,91597.0,0.0569686]
[1763638170772,0.02590803,91598.0,91597.0,0.0569686]
[1763638171585,0.04953803,91598.0,91597.0,0.0569686]
[1763638171780,0.00219803,91598.0,91597.0,0.0569686]
[1763638171976,0.00219803,91598.0,91597.0,0.0579686]
[1763638172484,0.04842291,91606.0,91605.0,0.0583576]
[1763638172673,0.05062094,91606.0,91605.0,0.0583576]
[1763638172874,0.05062094,91606.0,91605.0,0.04743]
[1763638173073,0.06154844,91606.0,91605.0,0.04743]
[1763638173274,0.05062094,91606.0,91605.0,0.0583576]
[1763638173976,0.05062094,91606.0,91605.0,0.13691556]
[1763638174184,0.00247094,91606.0,91605.0,0.0583576]
[1763638175078,0.00027291,91606.0,91605.0,0.13691556]
[1763638175279,0.00027291,91606.0,91605.0,0.0583576]
[1763638175884,0.02335291,91606.0,91605.0,0.0583576]
[1763638176784,0.04779291,91606.0,91605.0,0.0593576]
[1763638176983,0.04999094,91606.0,91605.0,0.04843]
[1763638177371,0.04999094,91606.0,91605.0,0.15379]
[1763638179081,0.04999094,91606.0,91605.0,0.04843]
[1763638180180,0.04999094,91606.0,91605.0,0.04743]
[1763638184394,0.04999094,91606.0,91605.0,0.06117]
[1763638184996,0.04999094,91606.0,91605.0,0.0720976]
[1763638186087,0.04999094,91606.0,91605.0,0.0730976]
[1763638188296,0.06091844,91606.0,91605.0,0.06217]
[1763638188502,0.04999094,91606.0,91605.0,0.0730976]
[1763638188798,0.06091844,91606.0,91605.0,0.0730976]
[1763638190301,0.04999094,91606.0,91605.0,0.0720976]
[1763638190495,0.04999094,91606.0,91605.0,0.0730976]
[1763638193299,0.04999094,91606.0,91605.0,0.15160107]
[1763638194399,0.04999094,91606.0,91605.0,0.0730976]
[1763638197702,0.04779291,91606.0,91605.0,0.0730976]
[1763638197894,0.00027291,91606.0,91605.0,0.0730976]
[1763638199813,0.04752,91619.0,91618.0,0.057786]
[1763638200008,0.06064403,91619.0,91618.0,0.04686]
[1763638201209,0.06164403,91619.0,91618.0,0.04686]
[1763638201909,0.00319803,91619.0,91618.0,0.0577861]
[1763638202211,0.00319803,91619.0,91615.0,0.0923541]
[1763638202212,0.40832,91626.0,91625.0,0.0606]
[1763638202417,0.41051803,91626.0,91625.0,0.0606]
[1763638203112,0.0556656,91622.0,91621.0,0.12307677]
[1763638203312,0.05786363,91622.0,91621.0,0.04444]
[1763638204217,0.05886363,91622.0,91621.0,0.04444]
[1763638205616,0.05986363,91622.0,91621.0,0.04444]
[1763638208324,0.04893803,91622.0,91621.0,0.04444]
[1763638208817,0.02585803,91622.0,91621.0,0.04444]
[1763638209718,0.00419803,91622.0,91621.0,0.04444]
[1763638209920,0.04893803,91622.0,91621.0,0.04444]
[1763638211220,0.00419803,91622.0,91621.0,0.04444]
[1763638211610,0.002,91622.0,91621.0,0.40524]
[1763638212812,0.04490381,91628.0,91627.0,0.04444]
[1763638213010,0.04710184,91628.0,91627.0,0.04444]
[1763638214421,0.04810184,91628.0,91627.0,0.04444]
[1763638215317,0.04910184,91628.0,91627.0,0.04444]
[1763638218923,0.00436184,91628.0,91627.0,0.04444]
[1763638219107,0.04910184,91628.0,91627.0,0.04444]
[1763638219706,0.00216381,91628.0,91627.0,0.04444]
[1763638225222,0.3608,91641.0,91640.0,0.0680435]
[1763638226219,0.3608,91641.0,91640.0,1.5680435]
[1763638226427,0.04501279,91646.0,91645.0,0.0680429]
[1763638226825,0.00027279,91646.0,91645.0,0.0680429]
[1763638227223,0.02193279,91646.0,91645.0,0.0680429]
[1763638227627,0.00027279,91646.0,91645.0,0.0680429]
[1763638229626,0.00027279,91646.0,91645.0,0.1733229]
[1763638229823,0.00027279,91646.0,91645.0,0.1624]
[1763638230022,0.02413082,91646.0,91645.0,0.1624]
[1763638230219,0.04721082,91646.0,91645.0,0.1624]
[1763638232324,0.0540639,91636.0,91635.0,0.04453]
[1763638232531,0.0540643,91633.0,91632.0,0.38274]
[1763638232720,0.05626233,91633.0,91632.0,0.38274]
[1763638233424,0.05626233,91633.0,91632.0,0.40533]
[1763638233626,0.05626233,91633.0,91632.0,0.04453]
[1763638235028,0.05626233,91633.0,91632.0,0.04553]
[1763638235330,0.05626233,91633.0,91632.0,0.04653]
[1763638240435,0.04533803,91633.0,91632.0,0.04653]
[1763638244225,0.04533803,91633.0,91632.0,0.0574544]
[1763638247438,0.00219803,91633.0,91632.0,0.0574544]
[1763638247642,0.02414803,91633.0,91632.0,0.0574544]
[1763638248243,0.04533803,91633.0,91632.0,0.0574544]
[1763638250548,0.05626233,91633.0,91632.0,0.0574544]
[1763638251247,0.05626233,91633.0,91632.0,0.04653]
[1763638252238,0.05626233,91633.0,91632.0,0.05994]
[1763638252747,0.05626233,91633.0,91632.0,0.0708644]
[1763638254749,0.04533803,91633.0,91632.0,0.0708644]
[1763638255248,0.00219803,91633.0,91632.0,0.0698644]
[1763638255638,0.02414803,91633.0,91632.0,0.14833446]
[1763638255838,0.3608,91637.0,91636.0,0.0688639]
[1763638256056,0.0540629,91645.0,91644.0,0.01341]
[1763638256240,0.00219803,91645.0,91644.0,0.068863]
[1763638256445,0.04533803,91645.0,91644.0,0.05794]
[1763638257447,0.04633803,91645.0,91644.0,0.05794]
[1763638258245,0.02514803,91645.0,91644.0,0.05794]
[1763638258445,0.04633803,91645.0,91644.0,0.05794]
[1763638258860,0.04733803,91645.0,91644.0,0.05794]
[1763638261156,0.05826093,91645.0,91644.0,0.05794]
[1763638261357,0.05826093,91645.0,91644.0,0.068863]
[1763638261655,0.05826093,91645.0,91644.0,0.05794]
[1763638263360,0.04733803,91645.0,91644.0,0.05794]
[1763638263551,0.00419803,91645.0,91644.0,0.05794]
[1763638265252,0.04931803,91645.0,91644.0,0.05794]
[1763638266562,0.04931803,91645.0,91644.0,0.068863]
[1763638268360,0.06024093,91645.0,91644.0,0.05794]
[1763638269964,0.06024093,91645.0,91644.0,0.04453]
[1763638270669,0.06024093,91645.0,91644.0,0.02194]
[1763638270962,0.0560441,91635.0,91634.0,0.02284]
[1763638271162,0.05824213,91635.0,91634.0,0.04398]
[1763638271767,0.04731803,91635.0,91634.0,0.04398]
[1763638273052,0.05824213,91635.0,91634.0,0.04398]
[1763638276271,0.04731803,91635.0,91634.0,0.04398]
[1763638277767,0.05824213,91635.0,91634.0,0.04398]
[1763638279056,0.04731803,91635.0,91634.0,0.04398]
[1763638280572,0.05824213,91635.0,91634.0,0.04398]
[1763638281375,0.04731803,91635.0,91634.0,0.04398]
[1763638288674,0.3608,91640.0,91639.0,0.04264]
[1763638288977,0.00027279,91646.0,91644.0,0.066553]
[1763638288978,0.0330329,91645.0,91644.0,0.066553]
[1763638289178,0.02430803,91645.0,91644.0,0.066553]
[1763638289377,0.03523093,91645.0,91644.0,0.05563]
[1763638289690,0.05634093,91645.0,91644.0,0.05563]
[1763638291088,0.05734093,91645.0,91644.0,0.05563]
[1763638292085,0.05834093,91645.0,91644.0,0.05563]
[1763638294091,0.05834093,91645.0,91644.0,0.02139]
[1763638295480,0.0550338,91637.0,91636.0,0.02202]
[1763638295681,0.41803183,91637.0,91636.0,0.04358]
[1763638297486,0.41803183,91637.0,91636.0,0.0545039]
[1763638297887,0.40710803,91637.0,91636.0,0.0545039]
[1763638298385,0.00219803,91637.0,91636.0,0.0545039]
[1763638298593,0.00219803,91637.0,91636.0,0.13297396]
[1763638298889,0.00219803,91637.0,91636.0,0.0545039]
[1763638299288,0.00027279,91646.0,91645.0,0.0563]
[1763638299486,0.00247082,91646.0,91645.0,0.0563]
[1763638300579,0.00347082,91646.0,91645.0,0.0563]
[1763638300990,0.00447082,91646.0,91645.0,0.0563]
[1763638305493,0.02700082,91646.0,91645.0,0.0563]
[1763638305683,0.04858082,91646.0,91645.0,0.0563]
[1763638306688,0.05950352,91646.0,91645.0,0.0563]
[1763638306893,0.01539352,91646.0,91640.0,0.04358]
[1763638307084,0.0550333,91641.0,91640.0,0.04358]
[1763638307386,0.05723133,91641.0,91640.0,0.04358]
[1763638308986,0.05723133,91641.0,91640.0,0.0545035]
[1763638309191,0.04630803,91641.0,91640.0,0.0545035]
[1763638310893,0.04630803,91641.0,91640.0,0.0672235]
[1763638313891,0.04630803,91641.0,91640.0,0.14585406]
[1763638317897,0.04630803,91641.0,91640.0,0.0672235]
[1763638318193,0.02472803,91641.0,91640.0,0.0672235]
[1763638318386,0.04630803,91641.0,91640.0,0.0672235]
[1763638319791,0.05530549,91646.0,91645.0,0.04358]
[1763638319990,0.05750352,91646.0,91645.0,0.04358]
[1763638321801,0.05850352,91646.0,91645.0,0.04358]
[1763638322006,0.05950352,91646.0,91645.0,0.04358]
[1763638322800,0.05950352,91646.0,91645.0,0.0446]
[1763638323198,0.05950352,91646.0,91645.0,0.02202]
[1763638323395,0.05950352,91646.0,91645.0,0.0446]
[1763638323899,0.0540433,91641.0,91640.0,0.0690234]
[1763638324103,0.05624133,91641.0,91640.0,0.0690234]
[1763638324704,0.05624133,91641.0,91640.0,0.0581]
[1763638325496,0.05624133,91641.0,91640.0,0.0690235]
[1763638325699,0.05624133,91641.0,91640.0,0.0563035]
[1763638325902,0.05624133,91641.0,91640.0,0.0699235]
[1763638326604,0.05624133,91641.0,91640.0,0.059]
[1763638327405,0.05624133,91641.0,91640.0,0.0699235]
[1763638328000,0.05624133,91641.0,91640.0,0.04538]
[1763638328206,0.05624133,91641.0,91640.0,0.0563035]
[1763638328507,0.05624133,91641.0,91640.0,0.0699235]
[1763638328708,0.04531803,91641.0,91640.0,0.0699235]
[1763638329106,0.02321803,91641.0,91640.0,0.0699235]
[1763638329310,0.00219803,91641.0,91640.0,0.0699235]
[1763638329604,0.00027279,91646.0,91645.0,0.0699229]
[1763638330110,2.79e-06,91646.0,91645.0,0.0699229]
[1763638330406,0.00016371,91650.0,91649.0,0.0563024]
[1763638330912,0.3608,91662.0,91661.0,0.056301]
[1763638331097,0.36299803,91662.0,91661.0,0.056301]
[1763638331600,0.40611803,91662.0,91661.0,0.04538]
[1763638331996,0.38401803,91662.0,91661.0,0.04538]
[1763638332708,0.38501803,91662.0,91661.0,0.04538]
[1763638333502,0.38601803,91662.0,91661.0,0.04538]
[1763638335112,0.40811803,91662.0,91661.0,0.04538]
[1763638335508,0.38601803,91662.0,91661.0,0.04538]
[1763638336810,0.40811803,91662.0,91661.0,0.04538]
[1763638338705,0.00419803,91662.0,91661.0,0.04538]
[1763638339609,0.002,91662.0,91661.0,0.04538]
[1763638340911,0.00419803,91662.0,91661.0,0.04538]
[1763638341215,0.04731803,91662.0,91661.0,0.04538]
[1763638345308,0.04731803,91662.0,91661.0,0.0228]
[1763638345816,0.04731803,91662.0,91661.0,0.04538]
[1763638346316,0.0540419,91653.0,91652.0,0.00016371]
[1763638346617,0.05623993,91653.0,91652.0,0.00016371]
[1763638347111,0.05623993,91653.0,91652.0,0.04554371]
[1763638351707,0.04531803,91653.0,91652.0,0.04554371]
[1763638353419,0.05623993,91653.0,91652.0,0.04554371]
[1763638354019,0.04531803,91653.0,91652.0,0.04554371]
[1763638354416,0.02321803,91653.0,91652.0,0.04554371]
[1763638354616,0.40419,91662.0,91661.0,0.04397]
[1763638354918,0.40638803,91662.0,91661.0,0.04397]
[1763638355724,0.40638803,91662.0,91661.0,0.054891]
[1763638356114,0.40738803,91662.0,91661.0,0.054891]
[1763638356314,0.40838803,91662.0,91661.0,0.054891]
[1763638357618,0.04758803,91662.0,91661.0,0.054891]
[1763638360023,0.40838803,91662.0,91661.0,0.04397]
[1763638362320,0.0543117,91656.0,91655.0,0.02149]
[1763638362515,0.05650973,91656.0,91655.0,0.04397]
[1763638363518,0.05650973,91656.0,91655.0,0.02149]
[1763638364018,0.0543119,91653.0,91652.0,0.04413371]
[1763638364324,0.05650993,91653.0,91652.0,0.04413371]
[1763638365029,0.04558803,91653.0,91652.0,0.04413371]
[1763638369632,0.02417803,91653.0,91652.0,0.04413371]
[1763638369828,0.00219803,91653.0,91652.0,0.04413371]
[1763638370031,0.02417803,91653.0,91652.0,0.04413371]
[1763638370225,0.00219803,91653.0,91652.0,0.04413371]
[1763638370725,0.02417803,91653.0,91652.0,0.05505571]
[1763638372532,0.00219803,91653.0,91652.0,0.05505571]
[1763638373035,0.02417803,91653.0,91652.0,0.05505571]
[1763638373530,0.00219803,91653.0,91652.0,0.05505571]
[1763638375026,0.02417803,91653.0,91652.0,0.05505571]
[1763638375227,0.00219803,91653.0,91652.0,0.05505571]
[1763638375534,0.02417803,91653.0,91652.0,0.05505571]
[1763638375735,0.04558803,91653.0,91652.0,0.04413371]
[1763638378034,0.04558803,91653.0,91652.0,0.05505571]
[1763638378935,0.04558803,91653.0,91652.0,0.04413371]
[1763638382539,0.00219803,91653.0,91652.0,0.04413371]
[1763638384435,0.3608,91656.0,91655.0,0.05702]
[1763638384736,0.51035,91667.0,91666.0,0.04402]
[1763638384940,0.51254803,91667.0,91666.0,0.04402]
[1763638385234,0.52346823,91667.0,91666.0,0.04402]
[1763638385830,0.52446823,91667.0,91666.0,0.04402]
[1763638387139,0.52546823,91667.0,91666.0,0.04402]
[1763638393743,0.16466823,91667.0,91666.0,0.04402]
[1763638394245,0.16466823,91667.0,91666.0,0.0549404]
[1763638397339,0.04854803,91667.0,91666.0,0.0549404]
[1763638402041,0.02742803,91667.0,91666.0,0.4157404]
[1763638402253,0.00419803,91667.0,91666.0,0.4157404]
[1763638402445,0.00419803,91667.0,91666.0,0.49437418]
[1763638403251,0.002,91667.0,91666.0,0.4157404]
[1763638404255,0.02523,91667.0,91666.0,0.4157404]
[1763638404547,0.00419803,91667.0,91666.0,0.4157404]
[1763638404753,0.002,91667.0,91666.0,0.4157404]
[1763638406450,0.04635,91667.0,91666.0,0.0549404]
[1763638406942,0.02523,91667.0,91666.0,0.0549404]
[1763638407348,0.04635,91667.0,91666.0,0.0549404]